fUST/lending_fUST_20250507
["ID","MTS","AMOUNT","RATE_DAILY","PERIOD"]
[360188284,1746611434393,-151.0,0.000127,2]
[360188285,1746611434403,-151.0,0.000127,2]
[360188286,1746611434415,-151.0,0.000127,2]
[360188287,1746611434426,-151.0,0.000127,2]
[360188288,1746611434439,-2348.685251,0.000127,2]
[360188289,1746611434450,-2348.685251,0.000127,2]
[360188290,1746611434461,-151.0,0.000127,2]
[360188291,1746611434471,-151.0,0.000127,2]
[360188292,1746611434482,-291.397433,0.000127,2]
[360188293,1746611434491,-151.0,0.000127,2]
[360188294,1746611434501,-151.0,0.000127,2]
[360188295,1746611434511,-151.0,0.000127,2]
[360188296,1746611434521,-3909.74598293,0.00012765,2]
[360188297,1746611434531,-151.0,0.00012798,2]
[360188298,1746611434540,-151.0,0.00012798,2]
[360188299,1746611434549,-151.0,0.00012798,2]
[360188300,1746611434559,-151.0,0.00012798,2]
[360188301,1746611434725,-151.0,0.00012798,2]
[360188302,1746611434737,-151.0,0.00012798,2]
[360188303,1746611434747,-151.0,0.00012798,2]
[360188304,1746611434756,-151.0,0.00012798,2]
[360188305,1746611434766,-151.0,0.00012798,2]
[360188306,1746611434776,-180.647,0.000128,2]
[360188307,1746611434785,-18428.86034407,0.000129,2]
[360188308,1746611434795,-155.0,0.000129,2]
[360188309,1746611434804,-151.0,0.000129,2]
[360188310,1746611434814,-151.0,0.000129,2]
[360188311,1746611434824,-151.0,0.000129,2]
[360188312,1746611434834,-151.0,0.000129,2]
[360188313,1746611434844,-2348.685251,0.000129,2]
[360188314,1746611434854,-2348.685251,0.000129,2]
[360188315,1746611434863,-210.21468,0.000129,2]
[360188316,1746611434872,-151.0,0.000129,2]
[360188317,1746611434882,-2630.31346729,0.000129,2]
[360188318,1746611434891,-151.0,0.000129,2]
[360188319,1746611434900,-151.0,0.000129,2]
[360188320,1746611434909,-151.0,0.00012918,2]
[360188321,1746611434919,-151.0,0.00012918,2]
[360188322,1746611434928,-330.93288,0.00012918,2]
[360188323,1746611434938,-330.93288,0.00012918,2]
[360188324,1746611434947,-151.0,0.00012918,2]
[360188325,1746611434956,-278.802159,0.00012918,2]
[360188326,1746611434965,-151.0,0.00012918,2]
[360188327,1746611434975,-1742.8744035,0.00012934,2]
[360188328,1746611434984,-192.0,0.00012953,2]
[360188329,1746611434994,-153.31363719,0.00012992,2]
[360188330,1746611435003,-155.71470018,0.00012992,2]
[360188331,1746611435012,-213.85315713,0.00012992,2]
[360188332,1746611435021,-129993.8984028,0.00013,2]
[360188333,1746611435031,-3345.93372088,0.00013,3]
[360188340,1746611438088,-1224.51029153,0.00012593,2]
[360188341,1746611438097,-1224.51029153,0.00012593,2]
[360188342,1746611438107,-1224.51029153,0.00012593,2]
[360188343,1746611438116,-654.06627912,0.00013,3]
[360188344,1746611438125,-151.0,0.00013,2]
[360188345,1746611438134,-286.89799,0.00013,2]
[360188346,1746611438144,-151.0,0.00013,2]
[360188347,1746611438153,-151.0,0.00013,2]
[360188348,1746611438162,-223.91164,0.00013,2]
[360188349,1746611438171,-151.0,0.00013,2]
[360188351,1746611438181,-330.93288,0.00013,2]
[360188353,1746611438190,-330.93288,0.00013,2]
[360188354,1746611438199,-151.0,0.00013,2]
[360188355,1746611438208,-151.0,0.00013,2]
[360188356,1746611438217,-151.0,0.00013,2]
[360188357,1746611438226,-2348.685251,0.00013,2]
[360188358,1746611438235,-2348.685251,0.00013,2]
[360188359,1746611438244,-151.0,0.00013,2]
[360188360,1746611438253,-151.0,0.00013,2]
[360188361,1746611438262,-151.0,0.00013,2]
[360188362,1746611438271,-3909.74598293,0.00013036,2]
[360188363,1746611438280,-546.0,0.00013102,2]
[360188364,1746611438289,-2241.0,0.00013102,2]
[360188365,1746611438298,-708.0,0.00013102,2]
[360188366,1746611438307,-371.2929528,0.000132,2]
[360188367,1746611438316,-362.3733933,0.000132,2]
[360188368,1746611438324,-167.469,0.00013262,2]
[360188369,1746611438334,-250.0,0.00013262,2]
[360188370,1746611438343,-150.964,0.00013262,2]
[360188371,1746611438351,-204.596,0.00013262,2]
[360188372,1746611438361,-249.539,0.00013262,2]
[360188373,1746611438370,-250.0,0.00013262,2]
[360188374,1746611438379,-256.971,0.00013262,2]
[360188375,1746611438388,-242.0,0.00013262,2]
[360188376,1746611438397,-213.738,0.00013262,2]
[360188377,1746611438406,-635.0,0.000133,2]
[360188378,1746611438415,-3909.74598293,0.00013308,2]
[360188379,1746611438424,-465.1498871,0.00013309,2]
[360188380,1746611438433,-211.16364768,0.00013313,2]
[360188381,1746611438443,-151.0,0.00013333,2]
[360188382,1746611438454,-151.0,0.00013333,2]
[360188383,1746611438464,-600.0,0.00013392,2]
[360188384,1746611438472,-2630.31346726,0.00013417,2]
[360188385,1746611438482,-151.0,0.00013496,2]
[360188386,1746611438491,-151.0,0.00013496,2]
[360188387,1746611438501,-330.93288,0.00013496,2]
[360188388,1746611438511,-330.93288,0.00013496,2]
[360188389,1746611438520,-151.0,0.00013496,2]
[360188390,1746611438529,-151.0,0.00013496,2]
[360188391,1746611438539,-237.50884239,0.000135,2]
[360188392,1746611438548,-156.0,0.000135,2]
[360188393,1746611438557,-156.88934203,0.000135,2]
[360188394,1746611438567,-156.0,0.000135,2]
[360188395,1746611438575,-2348.685251,0.00013504,2]
[360188396,1746611438585,-2348.685251,0.00013504,2]
[360188397,1746611438594,-151.0,0.00013504,2]
[360188398,1746611438603,-600.0,0.00013532,2]
[360188399,1746611438613,-151.0,0.00013579,2]
[360188400,1746611438622,-3909.74598293,0.00013579,2]
[360188401,1746611438631,-259.08733775,0.00013579,2]
[360188402,1746611438640,-272.0,0.000136,2]
[360188403,1746611438649,-151.0,0.000136,2]
[360188404,1746611438659,-151.0,0.000136,2]
[360188405,1746611438667,-151.0,0.00013656,2]
[360188406,1746611438676,-151.168719,0.00013656,2]
[360188407,1746611438686,-151.168719,0.00013656,2]
[360188408,1746611438695,-18.98761565,0.00013656,2]
[360188409,1746611438707,-132.01238435,0.00013656,2]
[360188410,1746611438717,-151.0,0.00013656,2]
[360188411,1746611438726,-268.642544,0.00013656,2]
[360188412,1746611438735,-151.0,0.00013656,2]
[360188413,1746611438745,-151.0,0.00013656,2]
[360188414,1746611438754,-164.307036,0.00013656,2]
[360188415,1746611438764,-151.0,0.00013656,2]
[360188416,1746611438773,-207.257427,0.00013656,2]
[360188417,1746611438782,-151.0,0.00013656,2]
[360188418,1746611438791,-151.0,0.00013656,2]
[360188419,1746611438952,-330.93288,0.00013656,2]
[360188420,1746611438963,-124.77490155,0.00013656,2]
[360188424,1746611440336,-206.15797845,0.00013656,2]
[360188425,1746611440346,-151.0,0.00013656,2]
[360188426,1746611440356,-151.0,0.00013656,2]
[360188427,1746611440365,-151.0,0.00013656,2]
[360188428,1746611440374,-151.0,0.00013656,2]
[360188429,1746611440383,-2831.54851758,0.00013656,2]
[360188430,1746611440395,-479.93791128,0.00013656,2]
[360188431,1746611440408,-1870.92690447,0.00013656,2]
[360188432,1746611440419,-5110.64722402,0.00013656,2]
[360188433,1746611440428,-1498.95560589,0.0001367,2]
[360188451,1746611443050,-2071.63553113,0.0001367,2]
[360188452,1746611443101,-31197.70913176,0.0001367,2]
[360188453,1746611443154,-17318.46973122,0.0001367,2]
[360188454,1746611443164,-151.963408,0.0001367,2]
[360188455,1746611443173,-151.963408,0.0001367,2]
[360188456,1746611443181,-151.0,0.0001367,2]
[360188457,1746611443190,-151.168719,0.0001367,2]
[360188458,1746611443199,-151.168719,0.0001367,2]
[360188459,1746611443208,-196.286798,0.0001367,2]
[360188460,1746611443217,-151.0,0.0001367,2]
[360188461,1746611443226,-151.0,0.0001367,2]
[360188462,1746611443235,-151.0,0.0001367,2]
[360188464,1746611443245,-151.0,0.0001367,2]
[360188466,1746611443254,-151.0,0.0001367,2]
[360188468,1746611443263,-151.0,0.0001367,2]
[360188470,1746611443272,-151.0,0.0001367,2]
[360188472,1746611443281,-151.0,0.0001367,2]
[360188474,1746611443290,-151.0,0.0001367,2]
[360188477,1746611443299,-151.0,0.0001367,2]
[360188478,1746611443308,-151.0,0.0001367,2]
[360188479,1746611443317,-151.0,0.0001367,2]
[360188480,1746611443326,-330.93288,0.0001367,2]
[360188481,1746611443335,-330.93288,0.0001367,2]
[360188482,1746611443344,-151.0,0.0001367,2]
[360188483,1746611443353,-151.0,0.0001367,2]
[360188484,1746611443363,-151.0,0.0001367,2]
[360188485,1746611443372,-2348.685251,0.0001367,2]
[360188486,1746611443381,-2348.685251,0.0001367,2]
[360188487,1746611443390,-151.0,0.0001367,2]
[360188488,1746611443399,-151.0,0.0001367,2]
[360188489,1746611443408,-299.280793,0.0001367,2]
[360188490,1746611443417,-600.0,0.00013671,2]
[360188491,1746611443426,-500.0,0.00013673,2]
[360188492,1746611443435,-500.0,0.00013673,2]
[360188493,1746611443445,-500.0,0.00013673,2]
[360188494,1746611443458,-501.70788395,0.00013673,2]
[360188495,1746611443467,-500.0,0.00013673,2]
[360188496,1746611443475,-504.27162822,0.00013673,2]
[360188497,1746611443485,-500.0,0.00013673,2]
[360188498,1746611443495,-500.0,0.00013673,2]
[360188499,1746611443503,-500.88988746,0.00013673,2]
[360188500,1746611443513,-500.0,0.00013673,2]
[360188501,1746611443522,-500.0,0.00013673,2]
[360188502,1746611443531,-500.0,0.00013673,2]
[360188503,1746611443540,-500.0,0.00013673,2]
[360188504,1746611443549,-151.0,0.00013673,2]
[360188505,1746611443559,-257.087989,0.00013673,2]
[360188506,1746611443568,-3538.876236,0.00013673,2]
[360188507,1746611443577,-13133.01106636,0.00013679,2]
[360188508,1746611443586,-13133.01106636,0.00013679,2]
[360188509,1746611443595,-13133.01106636,0.00013679,2]
[360188510,1746611443605,-13133.01106636,0.00013679,2]
[360188511,1746611443614,-13133.01106636,0.00013679,2]
[360188512,1746611443625,-13133.01106636,0.00013679,2]
[360188513,1746611443634,-13133.01106636,0.00013679,2]
[360188514,1746611443643,-12652.00190551,0.00013679,2]
[360188524,1746611446165,-151.0,0.00012593,2]
[360188525,1746611446174,-245.009,0.00013188,2]
[360188526,1746611446184,-481.00916085,0.00013679,2]
[360188527,1746611446193,-5193.40689459,0.00013679,2]
[360188528,1746611446214,-7939.60417177,0.00013679,2]
[360188529,1746611446223,-13133.01106636,0.00013679,2]
[360188530,1746611446233,-151.963408,0.00013679,2]
[360188531,1746611446242,-151.963408,0.00013679,2]
[360188532,1746611446251,-151.963408,0.00013679,2]
[360188533,1746611446260,-151.963408,0.00013679,2]
[360188534,1746611446269,-151.963408,0.00013679,2]
[360188535,1746611446278,-151.963408,0.00013679,2]
[360188536,1746611446287,-151.0,0.00013679,2]
[360188537,1746611446297,-151.0,0.00013679,2]
[360188538,1746611446306,-166.902458,0.00013679,2]
[360188539,1746611446315,-151.0,0.00013679,2]
[360188540,1746611446324,-172.718298,0.00013679,2]
[360188541,1746611446334,-151.0,0.00013679,2]
[360188542,1746611446343,-153.156188,0.00013679,2]
[360188544,1746611446352,-151.0,0.00013679,2]
[360188545,1746611446362,-151.0,0.00013679,2]
[360188546,1746611446372,-151.0,0.00013679,2]
[360188547,1746611446381,-245.0,0.00013679,2]
[360188548,1746611446390,-151.0,0.00013679,2]
[360188549,1746611446399,-151.0,0.00013679,2]
[360188550,1746611446408,-183.392991,0.00013679,2]
[360188551,1746611446417,-151.168719,0.00013679,2]
[360188552,1746611446426,-151.168719,0.00013679,2]
[360188553,1746611446435,-151.168719,0.00013679,2]
[360188554,1746611446445,-151.168719,0.00013679,2]
[360188555,1746611446455,-151.168719,0.00013679,2]
[360188556,1746611446467,-151.168719,0.00013679,2]
[360188557,1746611446477,-151.168719,0.00013679,2]
[360188558,1746611446486,-151.168719,0.00013679,2]
[360188559,1746611446496,-151.168719,0.00013679,2]
[360188560,1746611446506,-151.168719,0.00013679,2]
[360188561,1746611446516,-151.168719,0.00013679,2]
[360188562,1746611446526,-151.168719,0.00013679,2]
[360188563,1746611446536,-151.168719,0.00013679,2]
[360188564,1746611446547,-151.168719,0.00013679,2]
[360188565,1746611446558,-151.0,0.00013679,2]
[360188566,1746611446571,-151.0,0.00013679,2]
[360188567,1746611446581,-151.0,0.00013679,2]
[360188568,1746611446591,-151.0,0.00013679,2]
[360188569,1746611446601,-151.0,0.00013679,2]
[360188570,1746611446611,-151.0,0.00013679,2]
[360188571,1746611446620,-151.0,0.00013679,2]
[360188572,1746611446630,-194.46808,0.00013679,2]
[360188573,1746611446640,-151.0,0.00013679,2]
[360188574,1746611446650,-151.0,0.00013679,2]
[360188575,1746611446659,-151.0,0.00013679,2]
[360188576,1746611446669,-151.0,0.00013679,2]
[360188577,1746611446679,-151.0,0.00013679,2]
[360188578,1746611446689,-151.0,0.00013679,2]
[360188579,1746611446698,-151.0,0.00013679,2]
[360188580,1746611446708,-151.0,0.00013679,2]
[360188581,1746611446718,-151.0,0.00013679,2]
[360188582,1746611446728,-151.0,0.00013679,2]
[360188583,1746611446737,-151.0,0.00013679,2]
[360188584,1746611446747,-151.0,0.00013679,2]
[360188585,1746611446757,-151.0,0.00013679,2]
[360188586,1746611446766,-151.0,0.00013679,2]
[360188587,1746611446776,-151.0,0.00013679,2]
[360188588,1746611446785,-151.0,0.00013679,2]
[360188589,1746611446795,-178.717056,0.00013679,2]
[360188590,1746611446805,-253.660966,0.00013679,2]
[360188591,1746611446814,-151.0,0.00013679,2]
[360188592,1746611446823,-151.0,0.00013679,2]
[360188593,1746611446832,-151.0,0.00013679,2]
[360188594,1746611446842,-151.0,0.00013679,2]
[360188595,1746611446851,-151.0,0.00013679,2]
[360188596,1746611446861,-238.229625,0.00013679,2]
[360188597,1746611446870,-151.0,0.00013679,2]
[360188598,1746611446880,-151.0,0.00013679,2]
[360188599,1746611446889,-151.0,0.00013679,2]
[360188600,1746611446899,-151.0,0.00013679,2]
[360188601,1746611446908,-151.0,0.00013679,2]
[360188602,1746611446918,-223.629192,0.00013679,2]
[360188603,1746611446927,-151.0,0.00013679,2]
[360188604,1746611446936,-210.054128,0.00013679,2]
[360188605,1746611446946,-151.0,0.00013679,2]
[360188606,1746611446955,-151.0,0.00013679,2]
[360188607,1746611446964,-151.0,0.00013679,2]
[360188608,1746611446974,-250.345972,0.00013679,2]
[360188609,1746611446984,-151.0,0.00013679,2]
[360188610,1746611446993,-151.0,0.00013679,2]
[360188611,1746611447002,-151.0,0.00013679,2]
[360188612,1746611447012,-151.0,0.00013679,2]
[360188613,1746611447026,-151.0,0.00013679,2]
[360188614,1746611447036,-151.0,0.00013679,2]
[360188615,1746611447045,-151.0,0.00013679,2]
[360188616,1746611447055,-151.0,0.00013679,2]
[360188617,1746611447064,-151.0,0.00013679,2]
[360188618,1746611447074,-154.302894,0.00013679,2]
[360188619,1746611447083,-151.0,0.00013679,2]
[360188620,1746611447093,-151.0,0.00013679,2]
[360188621,1746611447103,-151.0,0.00013679,2]
[360188622,1746611447112,-151.0,0.00013679,2]
[360188623,1746611447121,-151.0,0.00013679,2]
[360188624,1746611447130,-151.0,0.00013679,2]
[360188625,1746611447139,-151.0,0.00013679,2]
[360188626,1746611447148,-151.0,0.00013679,2]
[360188627,1746611447157,-151.0,0.00013679,2]
[360188628,1746611447167,-151.0,0.00013679,2]
[360188629,1746611447176,-330.93288,0.00013679,2]
[360188630,1746611447186,-330.93288,0.00013679,2]
[360188631,1746611447195,-330.93288,0.00013679,2]
[360188632,1746611447204,-330.93288,0.00013679,2]
[360188633,1746611447213,-330.93288,0.00013679,2]
[360188634,1746611447223,-330.9328816,0.00013679,2]
[360188635,1746611447233,-151.0,0.00013679,2]
[360188636,1746611447242,-151.0,0.00013679,2]
[360188637,1746611447252,-151.0,0.00013679,2]
[360188638,1746611447261,-160.023414,0.00013679,2]
[360188639,1746611447271,-151.0,0.00013679,2]
[360188640,1746611447281,-151.0,0.00013679,2]
[360188641,1746611447291,-151.0,0.00013679,2]
[360188642,1746611447300,-2348.685251,0.00013679,2]
[360188643,1746611447310,-2348.685251,0.00013679,2]
[360188644,1746611447319,-2348.685251,0.00013679,2]
[360188645,1746611447329,-2348.685251,0.00013679,2]
[360188646,1746611447339,-2348.685251,0.00013679,2]
[360188647,1746611447348,-2348.685251,0.00013679,2]
[360188648,1746611447358,-2348.685251,0.00013679,2]
[360188649,1746611447367,-2348.68526037,0.00013679,2]
[360188650,1746611447377,-151.0,0.00013679,2]
[360188651,1746611447386,-190.39259,0.00013679,2]
[360188652,1746611447395,-151.0,0.00013679,2]
[360188653,1746611447405,-151.0,0.00013679,2]
[360188654,1746611447415,-151.0,0.00013698,2]
[360188655,1746611447425,-230.76308,0.00013698,2]
[360188656,1746611447434,-151.0,0.00013698,2]
[360188657,1746611447444,-151.0,0.00013698,2]
[360188658,1746611447456,-151.0,0.00013698,2]
[360188659,1746611447467,-151.0,0.00013698,2]
[360188660,1746611447477,-151.0,0.00013698,2]
[360188661,1746611447486,-151.0,0.00013698,2]
[360188662,1746611447497,-151.0,0.00013698,2]
[360188663,1746611447506,-151.0,0.00013698,2]
[360188664,1746611447515,-151.0,0.00013698,2]
[360188665,1746611447525,-151.963408,0.00013698,2]
[360188666,1746611447536,-151.963408,0.00013698,2]
[360188667,1746611447547,-151.963408,0.00013698,2]
[360188668,1746611447557,-151.963408,0.00013698,2]
[360188669,1746611447568,-151.963408,0.00013698,2]
[360188670,1746611447577,-151.963408,0.00013698,2]
[360188671,1746611447587,-151.963408,0.00013698,2]
[360188672,1746611447597,-151.963408,0.00013698,2]
[360188673,1746611447607,-151.963408,0.00013698,2]
[360188674,1746611447616,-151.963408,0.00013698,2]
[360188675,1746611447626,-151.963408,0.00013698,2]
[360188676,1746611447635,-151.963408,0.00013698,2]
[360188677,1746611447645,-403.49214253,0.00013698,2]
[360188678,1746611447655,-151.168719,0.00013698,2]
[360188679,1746611447666,-151.168723,0.00013698,2]
[360188680,1746611447679,-202.21434323,0.00013698,2]
[360188681,1746611447689,-151.0,0.00013698,2]
[360188682,1746611447699,-151.0,0.00013698,2]
[360188683,1746611447710,-151.0,0.00013698,2]
[360188684,1746611447720,-151.0,0.00013698,2]
[360188685,1746611447730,-151.0,0.00013698,2]
[360188686,1746611447740,-151.0,0.00013698,2]
[360188687,1746611447750,-400.0,0.00013698,2]
[360188688,1746611447760,-400.0,0.00013698,2]
[360188689,1746611447770,-400.0,0.00013698,2]
[360188690,1746611447780,-400.0,0.00013698,2]
[360188691,1746611447790,-400.0,0.00013698,2]
[360188692,1746611447800,-400.0,0.00013698,2]
[360188693,1746611447810,-400.0,0.00013698,2]
[360188694,1746611447819,-507.53137919,0.00013698,2]
[360188695,1746611447828,-151.0,0.00013698,2]
[360188696,1746611447839,-400.0,0.00013698,2]
[360188697,1746611447849,-151.0,0.00013698,2]
[360188698,1746611447858,-400.0,0.00013698,2]
[360188699,1746611447868,-400.0,0.00013698,2]
[360188700,1746611447878,-400.0,0.00013698,2]
[360188701,1746611447888,-400.0,0.00013698,2]
[360188702,1746611447898,-400.0,0.00013698,2]
[360188703,1746611447907,-400.0,0.00013698,2]
[360188704,1746611447917,-400.0,0.00013698,2]
[360188705,1746611447927,-400.0,0.00013698,2]
[360188706,1746611447937,-400.0,0.00013698,2]
[360188707,1746611447946,-400.0,0.00013698,2]
[360188708,1746611447956,-505.48202776,0.00013698,2]
[360188709,1746611447965,-400.0,0.00013698,2]
[360188710,1746611447975,-400.0,0.00013698,2]
[360188711,1746611447985,-400.0,0.00013698,2]
[360188712,1746611447994,-400.0,0.00013698,2]
[360188713,1746611448004,-400.0,0.00013698,2]
[360188714,1746611448013,-400.0,0.00013698,2]
[360188715,1746611448023,-400.0,0.00013698,2]
[360188716,1746611448033,-400.0,0.00013698,2]
[360188717,1746611448043,-400.0,0.00013698,2]
[360188718,1746611448052,-400.0,0.00013698,2]
[360188719,1746611448254,-405.65406099,0.00013698,2]
[360188720,1746611448264,-151.0,0.00013698,2]
[360188721,1746611448274,-309.65036147,0.00013698,2]
[360188722,1746611448284,-400.0,0.00013698,2]
[360188723,1746611448294,-400.0,0.00013698,2]
[360188724,1746611448304,-400.0,0.00013698,2]
[360188725,1746611448314,-400.0,0.00013698,2]
[360188726,1746611448324,-400.0,0.00013698,2]
[360188727,1746611448334,-457.43572838,0.00013698,2]
[360188728,1746611448343,-400.0,0.00013698,2]
[360188729,1746611448353,-319.51333536,0.00013698,2]
[360188730,1746611448362,-414.77602267,0.00013698,2]
[360188731,1746611448371,-400.0,0.00013698,2]
[360188732,1746611448381,-400.0,0.00013698,2]
[360188733,1746611448391,-400.0,0.00013698,2]
[360188734,1746611448401,-400.0,0.00013698,2]
[360188735,1746611448411,-400.0,0.00013698,2]
[360188736,1746611448420,-400.0,0.00013698,2]
[360188737,1746611448430,-911.04,0.00013698,2]
[360188738,1746611448439,-407.08042307,0.00013698,2]
[360188739,1746611448450,-400.0,0.00013698,2]
[360188740,1746611448463,-400.0,0.00013698,2]
[360188741,1746611448472,-400.0,0.00013698,2]
[360188742,1746611448481,-400.0,0.00013698,2]
[360188743,1746611448491,-404.87715724,0.00013698,2]
[360188744,1746611448501,-400.0,0.00013698,2]
[360188745,1746611448511,-400.0,0.00013698,2]
[360188746,1746611448521,-407.59204654,0.00013698,2]
[360188747,1746611448531,-400.0,0.00013698,2]
[360188748,1746611448540,-400.0,0.00013698,2]
[360188749,1746611448550,-400.0,0.00013698,2]
[360188750,1746611448559,-400.0,0.00013698,2]
[360188751,1746611448569,-411.36390967,0.00013698,2]
[360188752,1746611448579,-400.0,0.00013698,2]
[360188753,1746611448590,-400.0,0.00013698,2]
[360188754,1746611448600,-400.0,0.00013698,2]
[360188755,1746611448610,-236.23554105,0.00013698,2]
[360188756,1746611448619,-400.0,0.00013698,2]
[360188757,1746611448629,-400.0,0.00013698,2]
[360188758,1746611448639,-206.78153637,0.00013698,2]
[360188759,1746611448649,-409.42244342,0.00013698,2]
[360188760,1746611448659,-400.0,0.00013698,2]
[360188761,1746611448669,-400.0,0.00013698,2]
[360188762,1746611448679,-410.58823093,0.00013698,2]
[360188763,1746611448691,-400.0,0.00013698,2]
[360188764,1746611448701,-400.0,0.00013698,2]
[360188765,1746611448710,-224.87969393,0.00013698,2]
[360188766,1746611448721,-400.0,0.00013698,2]
[360188767,1746611448730,-403.26464815,0.00013698,2]
[360188768,1746611448740,-993.53,0.00013698,2]
[360188769,1746611448749,-400.0,0.00013698,2]
[360188770,1746611448759,-400.0,0.00013698,2]
[360188771,1746611448769,-400.0,0.00013698,2]
[360188772,1746611448779,-400.0,0.00013698,2]
[360188773,1746611448788,-400.0,0.00013698,2]
[360188774,1746611448798,-400.0,0.00013698,2]
[360188775,1746611448808,-453.06200535,0.00013698,2]
[360188776,1746611448818,-402.52225472,0.00013698,2]
[360188777,1746611448828,-400.0,0.00013698,2]
[360188778,1746611448838,-400.0,0.00013698,2]
[360188779,1746611448847,-400.0,0.00013698,2]
[360188780,1746611448857,-400.0,0.00013698,2]
[360188781,1746611448866,-1193.73,0.00013698,2]
[360188782,1746611448876,-402.03556948,0.00013698,2]
[360188783,1746611448885,-400.0,0.00013698,2]
[360188784,1746611448895,-400.0,0.00013698,2]
[360188785,1746611448904,-400.0,0.00013698,2]
[360188786,1746611448914,-400.0,0.00013698,2]
[360188787,1746611448923,-400.0,0.00013698,2]
[360188788,1746611448933,-312.32577355,0.00013698,2]
[360188789,1746611448943,-400.0,0.00013698,2]
[360188790,1746611448952,-400.0,0.00013698,2]
[360188791,1746611448962,-400.0,0.00013698,2]
[360188792,1746611448972,-400.0,0.00013698,2]
[360188793,1746611448982,-513.56767377,0.00013698,2]
[360188794,1746611448991,-400.0,0.00013698,2]
[360188795,1746611449001,-400.0,0.00013698,2]
[360188796,1746611449011,-400.0,0.00013698,2]
[360188797,1746611449021,-400.0,0.00013698,2]
[360188798,1746611449031,-400.0,0.00013698,2]
[360188799,1746611449040,-311.02173781,0.00013698,2]
[360188800,1746611449049,-400.0,0.00013698,2]
[360188801,1746611449060,-205.03606361,0.00013698,2]
[360188802,1746611449070,-400.0,0.00013698,2]
[360188803,1746611449080,-400.0,0.00013698,2]
[360188804,1746611449089,-400.0,0.00013698,2]
[360188805,1746611449099,-400.0,0.00013698,2]
[360188806,1746611449108,-400.0,0.00013698,2]
[360188807,1746611449118,-369.56416317,0.00013698,2]
[360188808,1746611449128,-400.0,0.00013698,2]
[360188809,1746611449138,-400.0,0.00013698,2]
[360188810,1746611449148,-944.36,0.00013698,2]
[360188811,1746611449158,-400.0,0.00013698,2]
[360188812,1746611449168,-400.0,0.00013698,2]
[360188813,1746611449177,-400.0,0.00013698,2]
[360188814,1746611449187,-400.0,0.00013698,2]
[360188815,1746611449197,-400.0,0.00013698,2]
[360188816,1746611449207,-400.0,0.00013698,2]
[360188817,1746611449223,-151.0,0.00013698,2]
[360188818,1746611449237,-151.0,0.00013698,2]
[360188819,1746611449246,-206.38534741,0.00013698,2]
[360188820,1746611449256,-400.86950986,0.00013698,2]
[360188821,1746611449266,-400.0,0.00013698,2]
[360188822,1746611449276,-400.0,0.00013698,2]
[360188823,1746611449285,-348.04718061,0.00013698,2]
[360188824,1746611449295,-400.0,0.00013698,2]
[360188825,1746611449305,-366.4688016,0.00013698,2]
[360188826,1746611449315,-400.0,0.00013698,2]
[360188827,1746611449324,-400.0,0.00013698,2]
[360188828,1746611449333,-400.0,0.00013698,2]
[360188829,1746611449344,-400.0,0.00013698,2]